[Event "SS Manhem Chess Week 2022: Goteborg Open"]
[Site "Schackcentrum, Vegagatan 20, Gothenburg, Sweden"]
[Date "2022.08.12"]
[Round "1.1"]
[White "Westman, Lennart"]
[Black "Heimisson, Hilmir Freyr"]
[Result "0-1"]
[TimeControl "15 minutes + 5 seconds per move from move one (Round 1 - 4) / 90 minutes + 30 seconds per move from move one (Round 5 - 8)"]
[BlackTitle "IM"]
[WhiteFideId "1718690"]
[BlackFideId "2309998"]
[WhiteElo "1655"]
[BlackElo "2323"]

1. e4 {[%clk 00:15:06]} {[%emt 00:00:03]} c5 {[%clk 00:15:09]} {[%emt
00:00:02]} 2. Nf3 {[%clk 00:15:09]} {[%emt 00:00:03]} d6 {[%clk 00:15:13]}
{[%emt 00:00:01]} 3. d3 {[%clk 00:15:10]} {[%emt 00:00:04]} Nf6 {[%clk
00:15:13]} {[%emt 00:00:04]} 4. g3 {[%clk 00:15:10]} {[%emt 00:00:05]} g6
{[%clk 00:15:17]} {[%emt 00:00:01]} 5. Bg2 {[%clk 00:15:14]} {[%emt 00:00:01]}
Bg7 {[%clk 00:15:21]} 6. O-O {[%clk 00:15:10]} {[%emt 00:00:08]} O-O {[%clk
00:15:24]} {[%emt 00:00:02]} 7. Nbd2 {[%clk 00:14:58]} {[%emt 00:00:17]} Nc6
{[%clk 00:15:26]} {[%emt 00:00:03]} 8. Re1 {[%clk 00:14:56]} {[%emt 00:00:07]}
Bd7 {[%clk 00:15:21]} {[%emt 00:00:11]} 9. Nf1 {[%clk 00:14:54]} {[%emt
00:00:06]} Rb8 {[%clk 00:15:08]} {[%emt 00:00:19]} 10. c3 {[%clk 00:14:08]}
{[%emt 00:00:51]} b5 {[%clk 00:14:21]} {[%emt 00:00:52]} 11. d4 {[%clk
00:13:49]} {[%emt 00:00:24]} cxd4 {[%clk 00:13:52]} {[%emt 00:00:34]} 12. cxd4
{[%clk 00:13:39]} {[%emt 00:00:15]} Bg4 {[%clk 00:13:32]} {[%emt 00:00:24]} 13.
h3 {[%clk 00:13:14]} {[%emt 00:00:30]} Bxf3 {[%clk 00:13:36]} {[%emt 00:00:01]}
14. Bxf3 {[%clk 00:13:14]} {[%emt 00:00:05]} Nd7 {[%clk 00:12:02]} {[%emt
00:01:38]} 15. Be3 {[%clk 00:12:38]} {[%emt 00:00:42]} e5 {[%clk 00:11:46]}
{[%emt 00:00:21]} 16. d5 {[%clk 00:12:16]} {[%emt 00:00:26]} Nd4 {[%clk
00:11:49]} {[%emt 00:00:02]} 17. Bg2 {[%clk 00:11:26]} {[%emt 00:00:55]} Nb6
{[%clk 00:11:23]} {[%emt 00:00:32]} 18. f4 {[%clk 00:11:20]} {[%emt 00:00:11]}
Nc4 {[%clk 00:10:53]} {[%emt 00:00:34]} 19. Bxd4 {[%clk 00:11:04]} {[%emt
00:00:22]} exd4 {[%clk 00:10:56]} {[%emt 00:00:02]} 20. b3 {[%clk 00:09:53]}
{[%emt 00:01:15]} Nb6 {[%clk 00:11:00]} {[%emt 00:00:02]} 21. Rc1 {[%clk
00:09:31]} {[%emt 00:00:27]} Rc8 {[%clk 00:10:42]} {[%emt 00:00:23]} 22. Qd3
{[%clk 00:09:12]} {[%emt 00:00:23]} Qd7 {[%clk 00:10:11]} {[%emt 00:00:37]} 23.
Kh2 {[%clk 00:09:05]} {[%emt 00:00:12]} Rfe8 {[%clk 00:08:54]} {[%emt
00:01:21]} 24. g4 {[%clk 00:09:09]} {[%emt 00:00:02]} h6 {[%clk 00:08:19]}
{[%emt 00:00:40]} 25. Ng3 {[%clk 00:09:09]} {[%emt 00:00:05]} b4 {[%clk
00:07:54]} {[%emt 00:00:30]} 26. Rc6 {[%clk 00:08:38]} {[%emt 00:00:36]} Rxc6
{[%clk 00:07:26]} {[%emt 00:00:33]} 27. dxc6 {[%clk 00:08:41]} Qxc6 {[%clk
00:07:29]} {[%emt 00:00:02]} 28. e5 {[%clk 00:08:46]} Qc3 {[%clk 00:07:33]}
{[%emt 00:00:01]} 29. Qb5 {[%clk 00:07:33]} {[%emt 00:01:18]} Re7 {[%clk
00:06:40]} {[%emt 00:00:57]} 30. Rf1 {[%clk 00:05:27]} {[%emt 00:02:12]} dxe5
{[%clk 00:05:10]} {[%emt 00:01:35]} 31. f5 {[%clk 00:05:10]} {[%emt 00:00:22]}
Nd7 {[%clk 00:04:59]} {[%emt 00:00:15]} 32. Ne4 {[%clk 00:05:03]} {[%emt
00:00:13]} Qc7 {[%clk 00:04:53]} {[%emt 00:00:11]} 33. f6 {[%clk 00:04:55]}
{[%emt 00:00:13]} Nxf6 {[%clk 00:04:51]} {[%emt 00:00:06]} 34. Nxf6+ {[%clk
00:04:58]} {[%emt 00:00:02]} Bxf6 {[%clk 00:04:55]} {[%emt 00:00:01]} 35. Rxf6
{[%clk 00:04:55]} {[%emt 00:00:08]} e4+ {[%clk 00:04:58]} {[%emt 00:00:02]} 36.
Kh1 {[%clk 00:04:21]} {[%emt 00:00:38]} d3 {[%clk 00:04:28]} {[%emt 00:00:36]}
37. Qd5 {[%clk 00:03:48]} {[%emt 00:00:39]} Kg7 {[%clk 00:03:03]} {[%emt
00:01:30]} 38. Rc6 {[%clk 00:03:33]} {[%emt 00:00:20]} Qe5 {[%clk 00:02:02]}
{[%emt 00:01:06]} 39. Qxe5+ {[%clk 00:03:06]} {[%emt 00:00:33]} Rxe5 {[%clk
00:02:05]} 40. Rd6 {[%clk 00:03:08]} {[%emt 00:00:03]} e3 {[%clk 00:01:55]}
{[%emt 00:00:15]} 0-1

[Event "SS Manhem Chess Week 2022: Goteborg Open"]
[Site "Schackcentrum, Vegagatan 20, Gothenburg, Sweden"]
[Date "2022.08.12"]
[Round "1.2"]
[White "Jacobsen, Mikkel Manosri"]
[Black "Shchetinin, Oleg"]
[Result "1-0"]
[TimeControl "15 minutes + 5 seconds per move from move one (Round 1 - 4) / 90 minutes + 30 seconds per move from move one (Round 5 - 8)"]
[WhiteTitle "FM"]
[WhiteFideId "1444514"]
[BlackFideId "1740210"]
[WhiteElo "2320"]
[BlackElo "1643"]

1. d4 {[%clk 00:15:08]} {[%emt 00:00:02]} Nf6 {[%clk 00:15:08]} {[%emt
00:00:03]} 2. c4 {[%clk 00:15:11]} {[%emt 00:00:01]} e6 {[%clk 00:15:11]}
{[%emt 00:00:02]} 3. Nf3 {[%clk 00:15:15]} {[%emt 00:00:02]} c5 {[%clk
00:15:12]} {[%emt 00:00:04]} 4. d5 {[%clk 00:15:19]} {[%emt 00:00:01]} g6
{[%clk 00:15:00]} {[%emt 00:00:17]} 5. Nc3 {[%clk 00:15:21]} {[%emt 00:00:02]}
Bg7 {[%clk 00:15:03]} {[%emt 00:00:02]} 6. e4 {[%clk 00:15:24]} {[%emt
00:00:02]} exd5 {[%clk 00:14:52]} {[%emt 00:00:16]} 7. cxd5 {[%clk 00:15:27]}
{[%emt 00:00:02]} d6 {[%clk 00:14:50]} {[%emt 00:00:07]} 8. Nd2 {[%clk
00:15:25]} {[%emt 00:00:07]} O-O {[%clk 00:14:30]} {[%emt 00:00:25]} 9. Be2
{[%clk 00:15:28]} {[%emt 00:00:02]} Nbd7 {[%clk 00:13:51]} {[%emt 00:00:44]} 10.
O-O {[%clk 00:15:30]} {[%emt 00:00:03]} a6 {[%clk 00:13:28]} {[%emt 00:00:28]}
11. a4 {[%clk 00:15:33]} {[%emt 00:00:02]} Re8 {[%clk 00:12:03]} {[%emt
00:01:29]} 12. a5 {[%clk 00:14:48]} {[%emt 00:00:51]} b5 {[%clk 00:11:22]}
{[%emt 00:00:46]} 13. axb6 {[%clk 00:14:37]} {[%emt 00:00:16]} Qxb6 {[%clk
00:10:49]} {[%emt 00:00:38]} 14. Nc4 {[%clk 00:14:24]} {[%emt 00:00:18]} Qb8
{[%clk 00:09:40]} {[%emt 00:01:14]} 15. Qc2 {[%clk 00:12:30]} {[%emt 00:02:00]}
Nb6 {[%clk 00:08:50]} {[%emt 00:00:53]} 16. Na5 {[%clk 00:12:31]} {[%emt
00:00:04]} Bb7 {[%clk 00:08:06]} {[%emt 00:00:49]} 17. Bf4 {[%clk 00:11:52]}
{[%emt 00:00:44]} Nc8 {[%clk 00:05:58]} {[%emt 00:02:14]} 18. Ra3 {[%clk
00:11:41]} {[%emt 00:00:16]} Qc7 {[%clk 00:05:54]} {[%emt 00:00:09]} 19. Rfa1
{[%clk 00:11:16]} {[%emt 00:00:29]} Nd7 {[%clk 00:05:30]} {[%emt 00:00:29]} 20.
h3 {[%clk 00:09:51]} {[%emt 00:01:30]} Be5 {[%clk 00:04:19]} {[%emt 00:01:17]}
21. Be3 {[%clk 00:09:28]} {[%emt 00:00:27]} Ncb6 {[%clk 00:03:31]} {[%emt
00:00:53]} 22. Nxb7 {[%clk 00:08:13]} {[%emt 00:01:20]} Qxb7 {[%clk 00:03:34]}
{[%emt 00:00:02]} 23. Bxa6 {[%clk 00:08:14]} {[%emt 00:00:04]} Qc7 {[%clk
00:03:33]} {[%emt 00:00:05]} 24. Bb5 {[%clk 00:07:42]} {[%emt 00:00:38]} Rxa3
{[%clk 00:03:36]} {[%emt 00:00:02]} 25. Rxa3 {[%clk 00:07:45]} {[%emt
00:00:02]} Ra8 {[%clk 00:03:37]} {[%emt 00:00:04]} 26. Bc6 {[%clk 00:07:04]}
{[%emt 00:00:46]} Rxa3 {[%clk 00:03:36]} {[%emt 00:00:06]} 27. bxa3 {[%clk
00:07:08]} Nb8 {[%clk 00:03:31]} {[%emt 00:00:10]} 28. Bb5 {[%clk 00:07:10]}
{[%emt 00:00:04]} N6d7 {[%clk 00:03:12]} {[%emt 00:00:24]} 29. a4 {[%clk
00:06:41]} {[%emt 00:00:34]} Qa5 {[%clk 00:03:07]} {[%emt 00:00:10]} 30. Bd2
{[%clk 00:06:40]} {[%emt 00:00:06]} Qa7 {[%clk 00:02:23]} {[%emt 00:00:49]} 31.
Nd1 {[%clk 00:06:11]} {[%emt 00:00:34]} Na6 {[%clk 00:01:54]} {[%emt 00:00:34]}
32. Ne3 {[%clk 00:06:00]} {[%emt 00:00:15]} Nb6 {[%clk 00:01:52]} {[%emt
00:00:08]} 33. a5 {[%clk 00:05:23]} {[%emt 00:00:42]} Nc8 {[%clk 00:01:43]}
{[%emt 00:00:13]} 34. Nc4 {[%clk 00:03:34]} {[%emt 00:01:54]} Nc7 {[%clk
00:01:35]} {[%emt 00:00:13]} 35. Bd7 {[%clk 00:03:06]} {[%emt 00:00:33]} Na6
{[%clk 00:01:09]} {[%emt 00:00:31]} 36. Nxe5 {[%clk 00:02:49]} {[%emt
00:00:22]} dxe5 {[%clk 00:01:09]} {[%emt 00:00:05]} 37. Bxc8 {[%clk 00:02:50]}
{[%emt 00:00:03]} Nb4 {[%clk 00:00:49]} {[%emt 00:00:26]} 38. Qa4 {[%clk
00:02:14]} {[%emt 00:00:41]} Nd3 {[%clk 00:00:30]} {[%emt 00:00:23]} 39. Qc4
{[%clk 00:01:53]} {[%emt 00:00:26]} Nf4 {[%clk 00:00:14]} {[%emt 00:00:21]} 40.
g3 {[%clk 00:01:43]} {[%emt 00:00:16]} Qc7 {[%clk 00:00:11]} {[%emt 00:00:08]}
41. gxf4 {[%clk 00:01:01]} {[%emt 00:00:46]} Qxc8 {[%clk 00:00:14]} {[%emt
00:00:02]} 42. fxe5 {[%clk 00:00:48]} {[%emt 00:00:18]} Kf8 {[%clk 00:00:14]}
{[%emt 00:00:05]} 43. e6 {[%clk 00:00:51]} {[%emt 00:00:02]} fxe6 {[%clk
00:00:16]} {[%emt 00:00:03]} 44. dxe6 {[%clk 00:00:55]} {[%emt 00:00:01]} Ke7
{[%clk 00:00:20]} {[%emt 00:00:01]} 45. Bg5+ {[%clk 00:00:59]} {[%emt
00:00:01]} 1-0

[Event "SS Manhem Chess Week 2022: Goteborg Open"]
[Site "Schackcentrum, Vegagatan 20, Gothenburg, Sweden"]
[Date "2022.08.12"]
[Round "1.3"]
[White "Sundin, Sven-Ingvar"]
[Black "Nygren, Kim"]
[Result "0-1"]
[TimeControl "15 minutes + 5 seconds per move from move one (Round 1 - 4) / 90 minutes + 30 seconds per move from move one (Round 5 - 8)"]
[BlackTitle "CM"]
[WhiteFideId "1724517"]
[BlackFideId "1706136"]
[WhiteElo "1637"]
[BlackElo "2229"]

1. e4 {[%clk 00:15:07]} {[%emt 00:00:03]} e5 {[%clk 00:15:08]} {[%emt
00:00:02]} 2. Nf3 {[%clk 00:15:09]} {[%emt 00:00:02]} Nc6 {[%clk 00:15:12]}
{[%emt 00:00:02]} 3. Bb5 {[%clk 00:15:12]} {[%emt 00:00:02]} a6 {[%clk
00:15:08]} {[%emt 00:00:09]} 4. Ba4 {[%clk 00:15:15]} {[%emt 00:00:01]} Nf6
{[%clk 00:15:11]} {[%emt 00:00:03]} 5. d3 {[%clk 00:15:06]} {[%emt 00:00:14]}
Bc5 {[%clk 00:15:09]} {[%emt 00:00:06]} 6. O-O {[%clk 00:15:06]} {[%emt
00:00:05]} b5 {[%clk 00:15:11]} {[%emt 00:00:04]} 7. Bb3 {[%clk 00:15:08]}
{[%emt 00:00:03]} O-O {[%clk 00:15:10]} {[%emt 00:00:06]} 8. c3 {[%clk
00:15:01]} {[%emt 00:00:11]} d5 {[%clk 00:15:03]} {[%emt 00:00:12]} 9. h3
{[%clk 00:14:33]} {[%emt 00:00:32]} Be6 {[%clk 00:14:29]} {[%emt 00:00:40]} 10.
Re1 {[%clk 00:14:15]} {[%emt 00:00:23]} Re8 {[%clk 00:14:16]} {[%emt 00:00:18]}
11. Bg5 {[%clk 00:13:50]} {[%emt 00:00:29]} dxe4 {[%clk 00:13:44]} {[%emt
00:00:38]} 12. dxe4 {[%clk 00:13:16]} {[%emt 00:00:39]} Qxd1 {[%clk 00:13:35]}
{[%emt 00:00:14]} 13. Bxd1 {[%clk 00:13:14]} {[%emt 00:00:07]} Nd7 {[%clk
00:13:31]} {[%emt 00:00:10]} 14. Nbd2 {[%clk 00:13:00]} {[%emt 00:00:18]} f6
{[%clk 00:13:34]} {[%emt 00:00:02]} 15. Bh4 {[%clk 00:12:59]} {[%emt 00:00:06]}
g5 {[%clk 00:13:31]} {[%emt 00:00:08]} 16. Bg3 {[%clk 00:12:46]} {[%emt
00:00:18]} Rad8 {[%clk 00:13:34]} {[%emt 00:00:02]} 17. Bb3 {[%clk 00:12:42]}
{[%emt 00:00:08]} Bb6 {[%clk 00:13:25]} {[%emt 00:00:15]} 18. Bxe6+ {[%clk
00:12:33]} {[%emt 00:00:14]} Rxe6 {[%clk 00:13:28]} {[%emt 00:00:02]} 19. Rad1
{[%clk 00:12:16]} {[%emt 00:00:22]} Nc5 {[%clk 00:13:27]} {[%emt 00:00:06]} 20.
Nb3 {[%clk 00:11:56]} {[%emt 00:00:25]} Rxd1 {[%clk 00:13:26]} {[%emt
00:00:07]} 21. Rxd1 {[%clk 00:11:58]} {[%emt 00:00:02]} Nxe4 {[%clk 00:13:29]}
{[%emt 00:00:02]} 22. Kf1 {[%clk 00:11:08]} {[%emt 00:00:54]} h5 {[%clk
00:13:30]} {[%emt 00:00:04]} 23. h4 {[%clk 00:10:26]} {[%emt 00:00:47]} g4
{[%clk 00:13:20]} {[%emt 00:00:16]} 24. Nfd2 {[%clk 00:10:24]} {[%emt
00:00:06]} Nxg3+ {[%clk 00:12:51]} {[%emt 00:00:34]} 25. fxg3 {[%clk 00:10:26]}
{[%emt 00:00:03]} e4 {[%clk 00:12:55]} {[%emt 00:00:02]} 26. Ke2 {[%clk
00:10:05]} {[%emt 00:00:25]} Kf7 {[%clk 00:12:38]} {[%emt 00:00:22]} 27. Nf1
{[%clk 00:09:58]} {[%emt 00:00:11]} Ke7 {[%clk 00:12:27]} {[%emt 00:00:17]} 28.
Ne3 {[%clk 00:09:43]} {[%emt 00:00:19]} Bxe3 {[%clk 00:11:29]} {[%emt
00:01:03]} 29. Kxe3 {[%clk 00:09:44]} {[%emt 00:00:05]} Ne5 {[%clk 00:11:33]}
{[%emt 00:00:01]} 30. Nd4 {[%clk 00:09:24]} {[%emt 00:00:24]} Nc4+ {[%clk
00:11:37]} {[%emt 00:00:02]} 31. Ke2 {[%clk 00:09:08]} {[%emt 00:00:21]} Rb6
{[%clk 00:11:20]} {[%emt 00:00:22]} 32. b3 {[%clk 00:09:04]} {[%emt 00:00:08]}
Nd6 {[%clk 00:11:13]} {[%emt 00:00:13]} 33. Ke3 {[%clk 00:08:44]} {[%emt
00:00:25]} c5 {[%clk 00:11:10]} {[%emt 00:00:09]} 34. Ne2 {[%clk 00:08:34]}
{[%emt 00:00:14]} Rb8 {[%clk 00:10:39]} {[%emt 00:00:36]} 35. Nf4 {[%clk
00:08:21]} {[%emt 00:00:18]} Nf5+ {[%clk 00:10:42]} {[%emt 00:00:02]} 36. Kf2
{[%clk 00:07:41]} {[%emt 00:00:44]} e3+ {[%clk 00:10:35]} {[%emt 00:00:13]} 37.
Ke2 {[%clk 00:07:38]} {[%emt 00:00:07]} Nxg3+ {[%clk 00:10:39]} {[%emt
00:00:02]} 38. Kxe3 {[%clk 00:07:40]} {[%emt 00:00:03]} Nf5+ {[%clk 00:09:47]}
{[%emt 00:00:57]} 39. Ke4 {[%clk 00:07:28]} {[%emt 00:00:17]} Nxh4 {[%clk
00:09:50]} {[%emt 00:00:02]} 40. Nxh5 {[%clk 00:07:29]} {[%emt 00:00:03]} f5+
{[%clk 00:08:57]} {[%emt 00:00:59]} 41. Ke5 {[%clk 00:07:07]} {[%emt 00:00:26]}
Nxg2 {[%clk 00:08:47]} {[%emt 00:00:14]} 42. Rd2 {[%clk 00:06:35]} {[%emt
00:00:37]} Nh4 {[%clk 00:08:40]} {[%emt 00:00:12]} 43. Rd6 {[%clk 00:05:50]}
{[%emt 00:00:51]} Nf3+ {[%clk 00:07:46]} {[%emt 00:01:00]} 44. Kd5 {[%clk
00:05:29]} {[%emt 00:00:26]} Rf8 {[%clk 00:04:08]} {[%emt 00:03:43]} 45. Re6+
{[%clk 00:04:58]} {[%emt 00:00:35]} Kd7 {[%clk 00:04:02]} {[%emt 00:00:11]} 46.
Nf6+ {[%clk 00:04:20]} {[%emt 00:00:44]} Kc8 {[%clk 00:03:27]} {[%emt
00:00:39]} 47. Rxa6 {[%clk 00:04:00]} {[%emt 00:00:27]} Kb7 {[%clk 00:03:29]}
{[%emt 00:00:03]} 48. Re6 {[%clk 00:03:32]} {[%emt 00:00:31]} g3 {[%clk
00:03:23]} {[%emt 00:00:11]} 49. Kxc5 {[%clk 00:02:55]} {[%emt 00:00:43]} g2
{[%clk 00:03:09]} {[%emt 00:00:20]} 50. Kxb5 {[%clk 00:02:05]} {[%emt
00:00:54]} g1=Q {[%clk 00:02:55]} {[%emt 00:00:20]} 51. Re7+ {[%clk 00:02:04]}
{[%emt 00:00:06]} Ka8 {[%clk 00:02:22]} {[%emt 00:00:37]} 52. Nd7 {[%clk
00:01:33]} {[%emt 00:00:36]} Rb8+ {[%clk 00:01:50]} {[%emt 00:00:37]} 53. Nxb8
{[%clk 00:00:58]} {[%emt 00:00:41]} Kxb8 {[%clk 00:01:46]} {[%emt 00:00:09]} 54.
Kc6 {[%clk 00:00:57]} {[%emt 00:00:06]} Qg6+ {[%clk 00:01:44]} {[%emt
00:00:07]} 55. Kb5 {[%clk 00:00:40]} {[%emt 00:00:22]} Qd6 {[%clk 00:01:26]}
{[%emt 00:00:22]} 56. Re8+ {[%clk 00:00:40]} {[%emt 00:00:05]} Kc7 {[%clk
00:01:30]} {[%emt 00:00:01]} 57. Rg8 {[%clk 00:00:33]} {[%emt 00:00:12]} Qd5+
{[%clk 00:01:34]} {[%emt 00:00:02]} 0-1

[Event "SS Manhem Chess Week 2022: Goteborg Open"]
[Site "Schackcentrum, Vegagatan 20, Gothenburg, Sweden"]
[Date "2022.08.12"]
[Round "1.4"]
[White "Rasti, Arvin"]
[Black "Persson, Sebastian"]
[Result "0-1"]
[TimeControl "15 minutes + 5 seconds per move from move one (Round 1 - 4) / 90 minutes + 30 seconds per move from move one (Round 5 - 8)"]
[WhiteFideId "1741160"]
[BlackFideId "1764187"]
[WhiteElo "2156"]
[BlackElo "1631"]

1. e4 {[%clk 00:15:07]} {[%emt 00:00:02]} c6 {[%clk 00:15:08]} {[%emt
00:00:02]} 2. d4 {[%clk 00:15:04]} {[%emt 00:00:08]} d5 {[%clk 00:15:09]}
{[%emt 00:00:04]} 3. e5 {[%clk 00:15:08]} {[%emt 00:00:02]} Bf5 {[%clk
00:15:09]} {[%emt 00:00:05]} 4. h4 {[%clk 00:15:01]} {[%emt 00:00:12]} h5
{[%clk 00:14:50]} {[%emt 00:00:23]} 5. Bd3 {[%clk 00:14:57]} {[%emt 00:00:09]}
Bxd3 {[%clk 00:14:33]} {[%emt 00:00:23]} 6. Qxd3 {[%clk 00:15:00]} {[%emt
00:00:02]} e6 {[%clk 00:14:29]} {[%emt 00:00:09]} 7. Ne2 {[%clk 00:14:00]}
{[%emt 00:01:04]} Nh6 {[%clk 00:13:03]} {[%emt 00:01:31]} 8. c4 {[%clk
00:11:51]} {[%emt 00:02:15]} dxc4 {[%clk 00:11:41]} {[%emt 00:01:27]} 9. Qxc4
{[%clk 00:11:54]} {[%emt 00:00:01]} Nd7 {[%clk 00:11:37]} {[%emt 00:00:09]} 10.
Nbc3 {[%clk 00:10:50]} {[%emt 00:01:10]} Nb6 {[%clk 00:11:20]} {[%emt
00:00:22]} 11. Qd3 {[%clk 00:10:25]} {[%emt 00:00:29]} Qc7 {[%clk 00:10:07]}
{[%emt 00:01:19]} 12. Bg5 {[%clk 00:09:19]} {[%emt 00:01:11]} Be7 {[%clk
00:09:48]} {[%emt 00:00:24]} 13. Rc1 {[%clk 00:08:10]} {[%emt 00:01:14]} Qd7
{[%clk 00:09:03]} {[%emt 00:00:50]} 14. O-O {[%clk 00:07:21]} {[%emt 00:00:53]}
Bxg5 {[%clk 00:08:24]} {[%emt 00:00:45]} 15. hxg5 {[%clk 00:07:25]} {[%emt
00:00:01]} Nf5 {[%clk 00:08:27]} {[%emt 00:00:02]} 16. Ne4 {[%clk 00:06:31]}
{[%emt 00:00:59]} h4 {[%clk 00:06:56]} {[%emt 00:01:36]} 17. Rfd1 {[%clk
00:05:52]} {[%emt 00:00:44]} Qe7 {[%clk 00:06:01]} {[%emt 00:01:00]} 18. a3
{[%clk 00:05:11]} {[%emt 00:00:46]} Rd8 {[%clk 00:05:44]} {[%emt 00:00:21]} 19.
Qf3 {[%clk 00:04:50]} {[%emt 00:00:26]} Nd5 {[%clk 00:04:52]} {[%emt 00:00:58]}
20. Qg4 {[%clk 00:04:23]} {[%emt 00:00:32]} h3 {[%clk 00:02:42]} {[%emt
00:02:16]} 21. gxh3 {[%clk 00:03:44]} {[%emt 00:00:44]} Rh4 {[%clk 00:02:45]}
{[%emt 00:00:02]} 22. Qf3 {[%clk 00:03:26]} {[%emt 00:00:23]} f6 {[%clk
00:02:07]} {[%emt 00:00:43]} 23. exf6 {[%clk 00:02:51]} {[%emt 00:00:40]} gxf6
{[%clk 00:02:11]} {[%emt 00:00:01]} 24. N4g3 {[%clk 00:02:39]} {[%emt
00:00:18]} Rxh3 {[%clk 00:01:46]} {[%emt 00:00:29]} 25. Qg4 {[%clk 00:02:04]}
{[%emt 00:00:40]} Rh4 {[%clk 00:01:22]} {[%emt 00:00:29]} 26. Qf3 {[%clk
00:02:03]} {[%emt 00:00:06]} Rh3 {[%clk 00:01:20]} {[%emt 00:00:07]} 27. Re1
{[%clk 00:01:35]} {[%emt 00:00:33]} fxg5 {[%clk 00:01:01]} {[%emt 00:00:24]} 28.
Qe4 {[%clk 00:01:02]} {[%emt 00:00:38]} Rh4 {[%clk 00:00:49]} {[%emt 00:00:17]}
29. Qg2 {[%clk 00:00:54]} {[%emt 00:00:13]} Nxg3 {[%clk 00:00:29]} {[%emt
00:00:25]} 30. Nxg3 {[%clk 00:00:57]} {[%emt 00:00:01]} Qf6 {[%clk 00:00:24]}
{[%emt 00:00:10]} 31. Re4 {[%clk 00:00:46]} {[%emt 00:00:16]} Nf4 {[%clk
00:00:21]} {[%emt 00:00:09]} 32. Qf1 {[%clk 00:00:49]} {[%emt 00:00:02]} Rxd4
{[%clk 00:00:16]} {[%emt 00:00:10]} 33. Rxd4 {[%clk 00:00:40]} {[%emt
00:00:14]} Qxd4 {[%clk 00:00:20]} {[%emt 00:00:01]} 34. Qe1 {[%clk 00:00:38]}
{[%emt 00:00:07]} Nh3+ {[%clk 00:00:11]} {[%emt 00:00:14]} 35. Kf1 {[%clk
00:00:31]} {[%emt 00:00:12]} Qd3+ {[%clk 00:00:15]} {[%emt 00:00:01]} 36. Kg2
{[%clk 00:00:35]} Qd5+ {[%clk 00:00:19]} {[%emt 00:00:01]} 37. Kf1 {[%clk
00:00:37]} {[%emt 00:00:03]} Nf4 {[%clk 00:00:16]} {[%emt 00:00:07]} 38. Kg1
{[%clk 00:00:34]} {[%emt 00:00:09]} Qg2# {[%clk 00:00:15]} 0-1